[Event "*** Biggest EVER Titled Tuesday"]
[Site "Chess.com"]
[Date "2018.04.17"]
[Round "4"]
[White "Arystanner23"]
[Black "bascheyaro"]
[Result "0-1"]
[WhiteElo "2492"]
[BlackElo "2684"]
[TimeControl "180+2"]
[EndTime "14:00:11 PDT"]
[Termination "bascheyaro won by resignation"]

1. e4 {[%clk 0:02:59.1]} 1... e6 {[%clk 0:03:01.1]} 2. d4 {[%clk 0:02:59.6]}
2... d5 {[%clk 0:03:03]} 3. Nd2 {[%clk 0:03:00.9]} 3... c5 {[%clk 0:03:04.1]} 4.
exd5 {[%clk 0:03:01.9]} 4... exd5 {[%clk 0:03:06]} 5. Ngf3 {[%clk 0:03:01.3]}
5... Nc6 {[%clk 0:03:07.9]} 6. Bb5 {[%clk 0:03:01.3]} 6... c4 {[%clk 0:03:09.2]}
7. O-O {[%clk 0:03:00.6]} 7... Bd6 {[%clk 0:03:10.5]} 8. b3 {[%clk 0:02:56.9]}
8... cxb3 {[%clk 0:03:12.4]} 9. axb3 {[%clk 0:02:57.5]} 9... Ne7 {[%clk
0:03:14]} 10. c4 {[%clk 0:02:46.9]} 10... O-O {[%clk 0:03:14.9]} 11. Ba3 {[%clk
0:02:39.4]} 11... a6 {[%clk 0:03:14.9]} 12. Bxd6 {[%clk 0:02:39.1]} 12... Qxd6
{[%clk 0:03:15.6]} 13. Bxc6 {[%clk 0:02:16]} 13... Nxc6 {[%clk 0:03:16.7]} 14.
Qc2 {[%clk 0:02:11.1]} 14... Bg4 {[%clk 0:03:16]} 15. h3 {[%clk 0:02:03]} 15...
Bh5 {[%clk 0:03:04.2]} 16. Qc3 {[%clk 0:01:57.9]} 16... Rad8 {[%clk 0:03:02.2]}
17. Rfe1 {[%clk 0:01:47.9]} 17... Bxf3 {[%clk 0:02:59.3]} 18. Nxf3 {[%clk
0:01:46.4]} 18... dxc4 {[%clk 0:03:00.5]} 19. bxc4 {[%clk 0:01:37.2]} 19... Nxd4
{[%clk 0:03:01.5]} 20. Nxd4 {[%clk 0:01:37.8]} 20... Qxd4 {[%clk 0:03:02.7]} 21.
Qxd4 {[%clk 0:01:37.7]} 21... Rxd4 {[%clk 0:03:04.6]} 22. Re7 {[%clk 0:01:38.6]}
22... Rb8 {[%clk 0:03:03.7]} 23. Rb1 {[%clk 0:01:33.2]} 23... g6 {[%clk
0:03:04.9]} 24. c5 {[%clk 0:01:27.3]} 24... Rc4 {[%clk 0:03:05.8]} 25. Rc7
{[%clk 0:01:28.1]} 25... a5 {[%clk 0:03:02]} 26. c6 {[%clk 0:01:11.8]} 26... b5
{[%clk 0:03:02.6]} 27. Rb7 {[%clk 0:01:12.8]} 27... Ra8 {[%clk 0:03:03.9]} 28.
c7 {[%clk 0:01:10.6]} 28... Rc8 {[%clk 0:03:03.2]} 29. R1xb5 {[%clk 0:01:11.3]}
29... a4 {[%clk 0:03:02.2]} 30. Rb4 {[%clk 0:01:07.1]} 30... R8xc7 {[%clk
0:03:01.2]} 31. Rxc7 {[%clk 0:00:39.5]} 31... Rxb4 {[%clk 0:03:02.1]} 32. g4
{[%clk 0:00:41.1]} 32... a3 {[%clk 0:02:57.2]} 33. Ra7 {[%clk 0:00:42]} 33...
Rb3 {[%clk 0:02:58.5]} 34. Kg2 {[%clk 0:00:43.5]} 34... Kg7 {[%clk 0:02:59.3]}
35. g5 {[%clk 0:00:44.5]} 35... Rc3 {[%clk 0:02:56.6]} 36. f3 {[%clk 0:00:41.7]}
36... Rc2+ {[%clk 0:02:57]} 37. Kg3 {[%clk 0:00:42.8]} 37... a2 {[%clk
0:02:57.9]} 38. Kf4 {[%clk 0:00:42.7]} 38... Rh2 {[%clk 0:02:54.3]} 39. Kg3
{[%clk 0:00:28.3]} 39... Rb2 {[%clk 0:02:55.1]} 40. Ra8 {[%clk 0:00:27.7]} 40...
h6 {[%clk 0:02:53.9]} 41. h4 {[%clk 0:00:29]} 41... h5 {[%clk 0:02:51.6]} 42.
Kf4 {[%clk 0:00:28.5]} 42... Rc2 {[%clk 0:02:50.4]} 43. Kg3 {[%clk 0:00:29.2]}
43... f5 {[%clk 0:02:51.2]} 44. Ra7+ {[%clk 0:00:27.5]} 44... Kf8 {[%clk
0:02:52.2]} 45. Kf4 {[%clk 0:00:28.9]} 45... Rg2 {[%clk 0:02:51.9]} 46. Ke5
{[%clk 0:00:29.7]} 46... Rb2 {[%clk 0:02:08.3]} 47. Kf6 {[%clk 0:00:29.7]} 47...
Rb6+ {[%clk 0:02:09.1]} 48. Ke5 {[%clk 0:00:31]} 48... Rb7 {[%clk 0:01:38.2]}
49. Rxa2 {[%clk 0:00:30.1]} 49... Kf7 {[%clk 0:01:39.6]} 50. Ra5 {[%clk
0:00:24.6]} 50... Rc7 {[%clk 0:01:37.5]} 51. Kd6 {[%clk 0:00:23.9]} 51... Re7
{[%clk 0:01:35.2]} 52. Re5 {[%clk 0:00:22.2]} 52... Ra7 {[%clk 0:01:34.8]} 53.
Rc5 {[%clk 0:00:23.3]} 53... Ra6+ {[%clk 0:01:25.6]} 54. Rc6 {[%clk 0:00:21.4]}
54... Ra7 {[%clk 0:01:20.2]} 55. Rc5 {[%clk 0:00:22.6]} 55... Rb7 {[%clk
0:01:16.8]} 56. Rc6 {[%clk 0:00:20.8]} 56... Re7 {[%clk 0:01:17.6]} 57. Rc5
{[%clk 0:00:21.7]} 57... Re6+ {[%clk 0:01:18.4]} 58. Kd5 {[%clk 0:00:22.2]}
58... Re3 {[%clk 0:01:19.5]} 59. Rc7+ {[%clk 0:00:23.1]} 59... Kf8 {[%clk
0:01:20.8]} 60. f4 {[%clk 0:00:23]} 60... Re4 {[%clk 0:01:20.8]} 61. Rc6 {[%clk
0:00:24.2]} 61... Kf7 {[%clk 0:01:19.8]} 62. Rc7+ {[%clk 0:00:25.6]} 62... Kf8
{[%clk 0:01:14.1]} 63. Rc6 {[%clk 0:00:27]} 63... Rxf4 {[%clk 0:01:15.3]} 64.
Rxg6 {[%clk 0:00:28.2]} 64... Rxh4 {[%clk 0:01:16.6]} 65. Rf6+ {[%clk
0:00:29.6]} 65... Kg7 {[%clk 0:01:18]} 66. Rxf5 {[%clk 0:00:30.9]} 66... Kg6
{[%clk 0:01:18.3]} 67. Re5 {[%clk 0:00:32.2]} 67... Rf4 {[%clk 0:01:18.1]} 68.
Re8 {[%clk 0:00:20.2]} 68... Kxg5 {[%clk 0:01:18.6]} 69. Rg8+ {[%clk 0:00:20.9]}
69... Kh4 {[%clk 0:01:19.8]} 70. Ke5 {[%clk 0:00:22.4]} 70... Rf1 {[%clk
0:01:20.7]} 71. Ke4 {[%clk 0:00:23.1]} 71... Kh3 {[%clk 0:01:21.4]} 72. Ke3
{[%clk 0:00:24.3]} 72... h4 {[%clk 0:01:22.1]} 73. Ke2 {[%clk 0:00:25.9]} 73...
Rf4 {[%clk 0:01:21.7]} 74. Rg7 {[%clk 0:00:27]} 74... Kh2 {[%clk 0:01:22.3]} 75.
Ke3 {[%clk 0:00:28.5]} 75... Rf5 {[%clk 0:01:22.5]} 76. Ke2 {[%clk 0:00:29.4]}
76... h3 {[%clk 0:01:22.9]} 77. Rg8 {[%clk 0:00:30.9]} 77... Kh1 {[%clk
0:01:23.6]} 78. Rg7 {[%clk 0:00:32.2]} 78... Rf4 {[%clk 0:01:21.8]} 79. Rg8
{[%clk 0:00:32.5]} 79... Kh2 {[%clk 0:01:22.1]} 80. Rg7 {[%clk 0:00:32.3]} 80...
Rf6 {[%clk 0:01:23.2]} 81. Rg8 {[%clk 0:00:33.4]} 81... Rf7 {[%clk 0:01:24.6]}
82. Rg6 {[%clk 0:00:34.7]} 82... Ra7 {[%clk 0:01:25.7]} 83. Kf2 {[%clk
0:00:34.9]} 83... Ra2+ {[%clk 0:01:26.8]} 84. Kf1 {[%clk 0:00:36.1]} 84... Rg2
{[%clk 0:01:28.7]} 85. Rh6 {[%clk 0:00:37.1]} 85... Rg5 {[%clk 0:01:28.7]} 86.
Kf2 {[%clk 0:00:27.5]} 86... Rf5+ {[%clk 0:01:29.6]} 87. Ke2 {[%clk 0:00:27.2]}
87... Ra5 {[%clk 0:01:18.3]} 88. Rg6 {[%clk 0:00:27.6]} 88... Ra2+ {[%clk
0:01:16.3]} 89. Kf3 {[%clk 0:00:21.6]} 89... Kh1 {[%clk 0:01:14.5]} 90. Rg8
{[%clk 0:00:21.1]} 90... Rb2 {[%clk 0:01:06.5]} 91. Rg7 {[%clk 0:00:21.7]} 91...
Kh2 {[%clk 0:01:06.8]} 92. Rg8 {[%clk 0:00:22.8]} 92... Rg2 {[%clk 0:01:08.1]}
93. Ra8 {[%clk 0:00:23.8]} 93... Rg7 {[%clk 0:01:04]} 94. Ra2+ {[%clk
0:00:24.5]} 94... Kh1 {[%clk 0:01:05.4]} 95. Ra1+ {[%clk 0:00:19.4]} 95... Rg1
{[%clk 0:01:06.3]} 96. Ra8 {[%clk 0:00:20.3]} 96... Rf1+ {[%clk 0:01:01.9]} 97.
Ke2 {[%clk 0:00:21.3]} 97... Rf4 {[%clk 0:01:02]} 98. Rg8 {[%clk 0:00:22.2]}
98... Rf5 {[%clk 0:01:00.7]} 99. Ke3 {[%clk 0:00:21.6]} 99... Rf1 {[%clk
0:01:00.9]} 100. Ke2 {[%clk 0:00:22.9]} 100... Rg1 {[%clk 0:01:02.4]} 101. Ra8
{[%clk 0:00:24]} 101... Kg2 {[%clk 0:01:00.8]} 102. Rg8+ {[%clk 0:00:24.6]}
102... Kh2 {[%clk 0:01:02.2]} 103. Ra8 {[%clk 0:00:23.4]} 103... Rg4 {[%clk
0:01:01.1]} 104. Kf3 {[%clk 0:00:21.8]} 104... Rg3+ {[%clk 0:01:01.5]} 105. Kf2
{[%clk 0:00:23.2]} 105... Rg5 {[%clk 0:01:02.2]} 106. Rf8 {[%clk 0:00:22.3]}
106... Rg2+ {[%clk 0:01:01.9]} 107. Kf3 {[%clk 0:00:23.2]} 107... Kg1 {[%clk
0:01:01.8]} 108. Ra8 {[%clk 0:00:24]} 108... Rb2 {[%clk 0:00:44.7]} 109. Ra1+
{[%clk 0:00:22.3]} 109... Kh2 {[%clk 0:00:45.9]} 110. Ra8 {[%clk 0:00:18.8]}
110... Rb1 {[%clk 0:00:46.9]} 111. Rg8 {[%clk 0:00:19.1]} 111... Rf1+ {[%clk
0:00:46.6]} 112. Ke2 {[%clk 0:00:20.2]} 112... Rg1 {[%clk 0:00:48.1]} 113. Ra8
{[%clk 0:00:18.4]} 113... Rg5 {[%clk 0:00:47.9]} 114. Kf2 {[%clk 0:00:16.9]}
114... Rf5+ {[%clk 0:00:49]} 115. Ke3 {[%clk 0:00:15.9]} 115... Kg2 {[%clk
0:00:48.5]} 116. Rg8+ {[%clk 0:00:15.2]} 116... Kf1 {[%clk 0:00:49.9]} 117. Rh8
{[%clk 0:00:15.4]} 117... Ra5 {[%clk 0:00:51.1]} 118. Kf4 {[%clk 0:00:13.5]}
118... Kg2 {[%clk 0:00:48.7]} 119. Rg8+ {[%clk 0:00:14.2]} 119... Kf2 {[%clk
0:00:50.1]} 120. Rh8 {[%clk 0:00:15.7]} 120... Ra4+ {[%clk 0:00:51.5]} 121. Kg5
{[%clk 0:00:14.6]} 121... Kg2 {[%clk 0:00:51.5]} 122. Kf5 {[%clk 0:00:14.9]}
122... h2 {[%clk 0:00:52.2]} 123. Rg8+ {[%clk 0:00:16.4]} 123... Kf1 {[%clk
0:00:52.3]} 124. Rh8 {[%clk 0:00:17.5]} 124... Ra2 {[%clk 0:00:53.2]} 125. Kf4
{[%clk 0:00:15.9]} 125... Kg1 {[%clk 0:00:54.3]} 126. Rg8+ {[%clk 0:00:16.7]}
126... Rg2 {[%clk 0:00:54.4]} 127. Ra8 {[%clk 0:00:16.1]} 127... h1=Q {[%clk
0:00:55.3]} 128. Ra1+ {[%clk 0:00:16.8]} 128... Kh2 {[%clk 0:00:56.7]} 0-1

[Event "*** Biggest EVER Titled Tuesday"]
[Site "Chess.com"]
[Date "2018.04.17"]
[Round "5"]
[White "Rokis13"]
[Black "kikydu96"]
[Result "1-0"]
[WhiteElo "2423"]
[BlackElo "2344"]
[TimeControl "180+2"]
[EndTime "14:03:21 PDT"]
[Termination "Rokis13 won by resignation"]

1. e4 {[%clk 0:03:01.9]} 1... e5 {[%clk 0:02:59.9]} 2. Nf3 {[%clk 0:03:02.1]}
2... Nc6 {[%clk 0:02:59.8]} 3. d4 {[%clk 0:03:03]} 3... exd4 {[%clk 0:02:59.6]}
4. Bc4 {[%clk 0:03:03.9]} 4... Nf6 {[%clk 0:03:00.6]} 5. e5 {[%clk 0:03:05.1]}
5... d5 {[%clk 0:03:01.4]} 6. Bb5 {[%clk 0:03:06.3]} 6... Ne4 {[%clk 0:03:02.6]}
7. Nxd4 {[%clk 0:03:07]} 7... Bd7 {[%clk 0:03:04.1]} 8. Bxc6 {[%clk 0:03:08]}
8... bxc6 {[%clk 0:03:06]} 9. O-O {[%clk 0:03:08.5]} 9... Bc5 {[%clk 0:03:07.5]}
10. f3 {[%clk 0:03:09.5]} 10... Ng5 {[%clk 0:03:08.2]} 11. Be3 {[%clk
0:03:10.4]} 11... O-O {[%clk 0:03:06.1]} 12. Qd2 {[%clk 0:03:09.2]} 12... Ne6
{[%clk 0:03:05.2]} 13. Nxe6 {[%clk 0:03:10]} 13... Bxe3+ {[%clk 0:03:05]} 14.
Qxe3 {[%clk 0:03:10.9]} 14... fxe6 {[%clk 0:03:04.7]} 15. Nd2 {[%clk 0:03:09.2]}
15... Be8 {[%clk 0:03:01.4]} 16. Nb3 {[%clk 0:03:08.9]} 16... Bg6 {[%clk
0:03:01.7]} 17. c3 {[%clk 0:03:09.6]} 17... a5 {[%clk 0:02:58.2]} 18. Nc5 {[%clk
0:03:10]} 18... Qe7 {[%clk 0:02:52.1]} 19. a3 {[%clk 0:03:07.1]} 19... a4 {[%clk
0:02:48.8]} 20. Qd4 {[%clk 0:03:04.2]} 20... Qg5 {[%clk 0:02:18.8]} 21. f4
{[%clk 0:03:03]} 21... Qg4 {[%clk 0:02:19.6]} 22. h3 {[%clk 0:03:02.8]} 22...
Qf5 {[%clk 0:02:16.4]} 23. g4 {[%clk 0:02:57.1]} 23... Qc2 {[%clk 0:02:15.1]}
24. Rf2 {[%clk 0:02:57.4]} 1-0

[Event "*** Biggest EVER Titled Tuesday"]
[Site "Chess.com"]
[Date "2018.04.17"]
[Round "5"]
[White "BillForster"]
[Black "ahmadzada13"]
[Result "0-1"]
[WhiteElo "1614"]
[BlackElo "2562"]
[TimeControl "180+2"]
[EndTime "14:03:33 PDT"]
[Termination "ahmadzada13 won by resignation"]

1. d4 {[%clk 0:01:26.2]} 1... Nf6 {[%clk 0:03:00]} 2. c4 {[%clk 0:01:26.1]} 2...
c5 {[%clk 0:03:01.1]} 3. d5 {[%clk 0:01:26.1]} 3... e6 {[%clk 0:03:02.5]} 4. Nc3
{[%clk 0:01:25.8]} 4... exd5 {[%clk 0:03:03.9]} 5. cxd5 {[%clk 0:01:25.9]} 5...
d6 {[%clk 0:03:05.3]} 6. e4 {[%clk 0:01:26.8]} 6... g6 {[%clk 0:03:06.1]} 7. h3
{[%clk 0:01:26.6]} 7... Bg7 {[%clk 0:03:07.3]} 8. Nf3 {[%clk 0:01:27.4]} 8...
O-O {[%clk 0:03:08.3]} 9. Bd3 {[%clk 0:01:28.3]} 9... a6 {[%clk 0:03:06.4]} 10.
a4 {[%clk 0:01:25.4]} 10... Nbd7 {[%clk 0:03:07.6]} 11. O-O {[%clk 0:01:24.4]}
11... Nh5 {[%clk 0:03:08.6]} 12. Re1 {[%clk 0:01:18.9]} 12... Ne5 {[%clk
0:03:08.9]} 13. Bg5 {[%clk 0:01:11.2]} 13... Nxf3+ {[%clk 0:03:07.3]} 14. Qxf3
{[%clk 0:01:00.4]} 14... Qxg5 {[%clk 0:03:08]} 0-1

[Event "*** Biggest EVER Titled Tuesday"]
[Site "Chess.com"]
[Date "2018.04.17"]
[Round "5"]
[White "Rish_97"]
[Black "bugsbunny444"]
[Result "0-1"]
[WhiteElo "2283"]
[BlackElo "2415"]
[TimeControl "180+2"]
[EndTime "14:03:37 PDT"]
[Termination "bugsbunny444 won by resignation"]

1. c4 {[%clk 0:03:01.8]} 1... b6 {[%clk 0:03:00.6]} 2. Nc3 {[%clk 0:03:00.7]}
2... Bb7 {[%clk 0:03:01.9]} 3. e4 {[%clk 0:03:01.1]} 3... e6 {[%clk 0:03:03.3]}
4. g3 {[%clk 0:03:01.8]} 4... f5 {[%clk 0:03:02.4]} 5. d3 {[%clk 0:03:01.1]}
5... Nf6 {[%clk 0:02:59.3]} 6. Bg2 {[%clk 0:03:02]} 6... fxe4 {[%clk 0:03:00.4]}
7. dxe4 {[%clk 0:03:02.2]} 7... Nc6 {[%clk 0:03:00]} 8. Nge2 {[%clk 0:03:02.4]}
8... Bc5 {[%clk 0:02:56.4]} 9. O-O {[%clk 0:03:01.6]} 9... O-O {[%clk
0:02:56.6]} 10. h3 {[%clk 0:03:02.9]} 10... Ne5 {[%clk 0:02:53.6]} 11. b3 {[%clk
0:03:00.9]} 11... Qe8 {[%clk 0:02:53.4]} 12. Kh2 {[%clk 0:03:01.2]} 12... Nfg4+
{[%clk 0:02:38]} 13. Kg1 {[%clk 0:02:34.5]} 13... Nxf2 {[%clk 0:02:25.8]} 14.
Qc2 {[%clk 0:02:26]} 14... Nxh3+ {[%clk 0:01:49.1]} 15. Kh2 {[%clk 0:02:22.3]}
15... Ng4+ {[%clk 0:01:46.3]} 0-1

[Event "*** Biggest EVER Titled Tuesday"]
[Site "Chess.com"]
[Date "2018.04.17"]
[Round "5"]
[White "muran29"]
[Black "alturas_pacificas"]
[Result "1-0"]
[WhiteElo "2345"]
[BlackElo "2165"]
[TimeControl "180+2"]
[EndTime "14:04:24 PDT"]
[Termination "muran29 won by resignation"]

1. d4 {[%clk 0:02:52.8]} 1... d5 {[%clk 0:03:00.9]} 2. c4 {[%clk 0:02:53.6]}
2... c6 {[%clk 0:03:01.9]} 3. cxd5 {[%clk 0:02:54.7]} 3... cxd5 {[%clk
0:03:02.6]} 4. Nc3 {[%clk 0:02:56.6]} 4... Nc6 {[%clk 0:03:03.9]} 5. Bf4 {[%clk
0:02:58.5]} 5... Nf6 {[%clk 0:03:04.8]} 6. e3 {[%clk 0:03:00.1]} 6... e6 {[%clk
0:03:06.1]} 7. Nf3 {[%clk 0:03:01.2]} 7... Bd6 {[%clk 0:03:07.5]} 8. Bg3 {[%clk
0:03:02.6]} 8... Bxg3 {[%clk 0:03:07.3]} 9. hxg3 {[%clk 0:03:03.4]} 9... h6
{[%clk 0:03:08.8]} 10. Bd3 {[%clk 0:03:03.7]} 10... Bd7 {[%clk 0:03:08.9]} 11.
Rc1 {[%clk 0:03:04.6]} 11... a6 {[%clk 0:03:09.5]} 12. a3 {[%clk 0:03:05.7]}
12... Rc8 {[%clk 0:03:10.6]} 13. b4 {[%clk 0:03:06.8]} 13... b5 {[%clk
0:03:11.7]} 14. Bb1 {[%clk 0:03:06.5]} 14... a5 {[%clk 0:03:04.6]} 15. Nxb5
{[%clk 0:03:05.2]} 15... axb4 {[%clk 0:03:04.1]} 16. Nd6+ {[%clk 0:03:05.9]}
16... Ke7 {[%clk 0:03:02.2]} 17. Nxc8+ {[%clk 0:03:07]} 17... Qxc8 {[%clk
0:03:03.5]} 18. axb4 {[%clk 0:03:08.1]} 18... Qb7 {[%clk 0:03:01.5]} 19. O-O
{[%clk 0:03:07.7]} 19... Qxb4 {[%clk 0:03:01.5]} 20. Ne5 {[%clk 0:03:07.9]}
20... Rc8 {[%clk 0:02:48.6]} 21. Nxd7 {[%clk 0:03:00.6]} 21... Nxd7 {[%clk
0:02:46.3]} 22. Qg4 {[%clk 0:02:58.6]} 22... Kf8 {[%clk 0:02:45.1]} 23. Qf4
{[%clk 0:02:49.1]} 23... Nf6 {[%clk 0:02:35.1]} 24. Bd3 {[%clk 0:02:43.5]} 24...
Qb7 {[%clk 0:01:57.7]} 25. Qd6+ {[%clk 0:02:33.7]} 25... Kg8 {[%clk 0:01:58.9]}
26. Rc2 {[%clk 0:02:24.5]} 26... Ne7 {[%clk 0:01:56.2]} 27. Rxc8+ {[%clk
0:02:20.1]} 27... Nxc8 {[%clk 0:01:54]} 28. Qd8+ {[%clk 0:02:20.5]} 1-0

[Event "*** Biggest EVER Titled Tuesday"]
[Site "Chess.com"]
[Date "2018.04.17"]
[Round "5"]
[White "maximlavrov"]
[Black "Zhuu96"]
[Result "0-1"]
[WhiteElo "2469"]
[BlackElo "2734"]
[TimeControl "180+2"]
[EndTime "14:04:28 PDT"]
[Termination "Zhuu96 won by resignation"]

1. g3 {[%clk 0:02:54.3]} 1... d5 {[%clk 0:02:59]} 2. Nf3 {[%clk 0:02:51.4]} 2...
Nf6 {[%clk 0:03:00.2]} 3. Bg2 {[%clk 0:02:52.9]} 3... e6 {[%clk 0:03:01.7]} 4.
O-O {[%clk 0:02:54.3]} 4... Be7 {[%clk 0:03:03.2]} 5. d3 {[%clk 0:02:54.7]} 5...
O-O {[%clk 0:03:04.2]} 6. Nbd2 {[%clk 0:02:56.2]} 6... c5 {[%clk 0:03:04.1]} 7.
e4 {[%clk 0:02:56.7]} 7... Nc6 {[%clk 0:03:05.6]} 8. exd5 {[%clk 0:02:56.7]}
8... exd5 {[%clk 0:03:02.3]} 9. d4 {[%clk 0:02:57]} 9... c4 {[%clk 0:03:02.5]}
10. c3 {[%clk 0:02:56.6]} 10... Bf5 {[%clk 0:03:02.9]} 11. Re1 {[%clk
0:02:56.5]} 11... Re8 {[%clk 0:03:02.8]} 12. b3 {[%clk 0:02:56.5]} 12... b5
{[%clk 0:03:00]} 13. Nf1 {[%clk 0:02:51.3]} 13... Ne4 {[%clk 0:02:59.2]} 14. Bb2
{[%clk 0:02:50.7]} 14... b4 {[%clk 0:03:00]} 15. cxb4 {[%clk 0:02:32.9]} 15...
c3 {[%clk 0:02:59.1]} 16. Bc1 {[%clk 0:02:32.7]} 16... Nxb4 {[%clk 0:02:59.8]}
17. Ne3 {[%clk 0:02:33.8]} 17... Bg6 {[%clk 0:02:53.6]} 18. a3 {[%clk
0:02:34.6]} 18... c2 {[%clk 0:02:52.7]} 19. Qe2 {[%clk 0:02:23.2]} 19... Nc3
{[%clk 0:02:53.8]} 20. Qd2 {[%clk 0:02:23.2]} 20... Nb1 {[%clk 0:02:55]} 21.
Qxb4 {[%clk 0:01:59.1]} 21... Bxb4 {[%clk 0:02:54.6]} 22. axb4 {[%clk 0:02:01]}
22... Qb6 {[%clk 0:02:43.8]} 23. Bb2 {[%clk 0:01:33.2]} 23... Qxb4 {[%clk
0:02:42.2]} 0-1

[Event "*** Biggest EVER Titled Tuesday"]
[Site "Chess.com"]
[Date "2018.04.17"]
[Round "5"]
[White "ChainsOfFantasia"]
[Black "saraswathii"]
[Result "1-0"]
[WhiteElo "2404"]
[BlackElo "2277"]
[TimeControl "180+2"]
[EndTime "14:04:50 PDT"]
[Termination "ChainsOfFantasia won by resignation"]

1. d4 {[%clk 0:03:01.9]} 1... Nf6 {[%clk 0:02:58.8]} 2. c4 {[%clk 0:02:58.5]}
2... g6 {[%clk 0:03:00.1]} 3. Nf3 {[%clk 0:02:59.3]} 3... Bg7 {[%clk 0:03:01.6]}
4. Nc3 {[%clk 0:03:01.2]} 4... d6 {[%clk 0:03:03.1]} 5. e4 {[%clk 0:03:01.9]}
5... O-O {[%clk 0:03:04]} 6. Be2 {[%clk 0:03:03.8]} 6... Nfd7 {[%clk 0:03:04.7]}
7. O-O {[%clk 0:03:05.7]} 7... e5 {[%clk 0:03:05.8]} 8. d5 {[%clk 0:03:05.4]}
8... Qe7 {[%clk 0:03:02.4]} 9. b4 {[%clk 0:03:03]} 9... a5 {[%clk 0:03:00.2]}
10. bxa5 {[%clk 0:03:04]} 10... Rxa5 {[%clk 0:02:59]} 11. Nb5 {[%clk 0:03:05.5]}
11... Nc5 {[%clk 0:02:39.4]} 12. Bd2 {[%clk 0:03:03.2]} 12... Ra8 {[%clk
0:02:38.5]} 13. Qc2 {[%clk 0:03:03.8]} 13... c6 {[%clk 0:02:37.8]} 14. Nc3
{[%clk 0:03:02.8]} 14... f5 {[%clk 0:02:34.9]} 15. dxc6 {[%clk 0:02:55]} 15...
bxc6 {[%clk 0:02:34.8]} 16. Be3 {[%clk 0:02:44.7]} 16... Nxe4 {[%clk 0:02:31.6]}
17. Nxe4 {[%clk 0:02:44.8]} 17... fxe4 {[%clk 0:02:32.7]} 18. Nd2 {[%clk
0:01:52.7]} 18... Na6 {[%clk 0:02:26.7]} 19. Nxe4 {[%clk 0:01:52.2]} 19... Bf5
{[%clk 0:02:17.2]} 20. f3 {[%clk 0:01:48.3]} 20... Rfb8 {[%clk 0:02:06.5]} 21.
Rfd1 {[%clk 0:01:44.2]} 21... Nb4 {[%clk 0:02:02.6]} 22. Qd2 {[%clk 0:01:41.8]}
22... Rd8 {[%clk 0:01:48.5]} 23. Qxb4 {[%clk 0:01:40.5]} 1-0

[Event "*** Biggest EVER Titled Tuesday"]
[Site "Chess.com"]
[Date "2018.04.17"]
[Round "5"]
[White "AbdAlAgathos"]
[Black "jk13"]
[Result "0-1"]
[WhiteElo "2325"]
[BlackElo "2534"]
[TimeControl "180+2"]
[EndTime "14:05:14 PDT"]
[Termination "jk13 won by resignation"]

1. e4 {[%clk 0:03:01.9]} 1... e5 {[%clk 0:03:00.8]} 2. Nf3 {[%clk 0:03:02.8]}
2... Nc6 {[%clk 0:03:02.3]} 3. Bb5 {[%clk 0:03:04.2]} 3... a6 {[%clk 0:03:03.5]}
4. Ba4 {[%clk 0:03:05.6]} 4... Nf6 {[%clk 0:03:05.1]} 5. O-O {[%clk 0:03:06.4]}
5... b5 {[%clk 0:03:06.8]} 6. Bb3 {[%clk 0:03:07.4]} 6... Bc5 {[%clk 0:03:08.7]}
7. c3 {[%clk 0:03:07.5]} 7... d6 {[%clk 0:03:09.6]} 8. d4 {[%clk 0:03:06.9]}
8... Bb6 {[%clk 0:03:11.1]} 9. a4 {[%clk 0:03:07.7]} 9... Rb8 {[%clk 0:03:11.9]}
10. axb5 {[%clk 0:03:03]} 10... axb5 {[%clk 0:03:13.8]} 11. Qd3 {[%clk 0:03:04]}
11... Bd7 {[%clk 0:03:13.9]} 12. Bg5 {[%clk 0:03:01.6]} 12... h6 {[%clk
0:03:14.5]} 13. Bh4 {[%clk 0:02:59.6]} 13... g5 {[%clk 0:03:13.9]} 14. Bg3
{[%clk 0:02:49.1]} 14... g4 {[%clk 0:03:07.5]} 15. Nh4 {[%clk 0:02:47.6]} 15...
exd4 {[%clk 0:03:08.3]} 16. Nf5 {[%clk 0:02:12.7]} 16... Ne5 {[%clk 0:03:00.2]}
17. Qd2 {[%clk 0:02:10]} 17... Nxe4 {[%clk 0:02:15.6]} 18. Ng7+ {[%clk
0:01:53.3]} 18... Kf8 {[%clk 0:02:13]} 19. Qf4 {[%clk 0:01:54.4]} 19... Nxg3
{[%clk 0:01:51.4]} 20. fxg3 {[%clk 0:01:47.4]} 20... d3+ {[%clk 0:01:42.5]} 21.
Kh1 {[%clk 0:01:47.7]} 21... Kxg7 {[%clk 0:01:43.3]} 22. Nd2 {[%clk 0:01:43.6]}
22... Qg5 {[%clk 0:01:39.9]} 23. Qxg5+ {[%clk 0:01:25]} 23... hxg5 {[%clk
0:01:40.5]} 24. Ne4 {[%clk 0:01:22]} 24... Rxh2+ {[%clk 0:01:39.9]} 0-1

[Event "*** Biggest EVER Titled Tuesday"]
[Site "Chess.com"]
[Date "2018.04.17"]
[Round "5"]
[White "PchelkinVK"]
[Black "martinique24"]
[Result "1-0"]
[WhiteElo "2430"]
[BlackElo "2314"]
[TimeControl "180+2"]
[EndTime "14:05:26 PDT"]
[Termination "PchelkinVK won by resignation"]

1. d4 {[%clk 0:03:01.9]} 1... Nf6 {[%clk 0:03:00.7]} 2. Nc3 {[%clk 0:03:02.2]}
2... d5 {[%clk 0:03:00.5]} 3. Bf4 {[%clk 0:03:03.1]} 3... a6 {[%clk 0:02:59.4]}
4. Nf3 {[%clk 0:03:03.7]} 4... e6 {[%clk 0:03:00.6]} 5. e3 {[%clk 0:03:03.9]}
5... c5 {[%clk 0:03:01.7]} 6. a3 {[%clk 0:03:04.6]} 6... Nc6 {[%clk 0:03:02.7]}
7. Be2 {[%clk 0:03:04.2]} 7... Be7 {[%clk 0:03:03.6]} 8. O-O {[%clk 0:03:05]}
8... O-O {[%clk 0:03:04.5]} 9. h3 {[%clk 0:03:06.4]} 9... b5 {[%clk 0:03:05.5]}
10. Ne5 {[%clk 0:03:05]} 10... Bb7 {[%clk 0:03:05.2]} 11. Bf3 {[%clk 0:03:05.9]}
11... Nxe5 {[%clk 0:03:05.5]} 12. Bxe5 {[%clk 0:03:06.6]} 12... Rc8 {[%clk
0:03:03.6]} 13. Qe2 {[%clk 0:03:03.4]} 13... Nd7 {[%clk 0:03:00.6]} 14. Bh2
{[%clk 0:03:02.1]} 14... Qb6 {[%clk 0:02:59.9]} 15. Rfd1 {[%clk 0:02:54.1]}
15... Nf6 {[%clk 0:02:55.5]} 16. Be5 {[%clk 0:02:38.2]} 16... a5 {[%clk
0:02:54.1]} 17. Qxb5 {[%clk 0:02:35.3]} 17... Rc6 {[%clk 0:02:43.2]} 18. Qxb6
{[%clk 0:02:34.4]} 18... Rxb6 {[%clk 0:02:43.2]} 19. Na4 {[%clk 0:02:36.3]}
19... Rc6 {[%clk 0:02:42.3]} 20. dxc5 {[%clk 0:02:26.6]} 20... Bxc5 {[%clk
0:02:42.3]} 21. Nxc5 {[%clk 0:02:27.2]} 21... Rxc5 {[%clk 0:02:43.8]} 22. Bd6
{[%clk 0:02:27.9]} 22... Rxc2 {[%clk 0:02:45.1]} 23. Bxf8 {[%clk 0:02:28.8]}
23... Kxf8 {[%clk 0:02:47]} 24. Rdc1 {[%clk 0:02:29.8]} 24... Rxb2 {[%clk
0:02:46.7]} 25. Rab1 {[%clk 0:02:31]} 25... Rxb1 {[%clk 0:02:42.1]} 26. Rxb1
{[%clk 0:02:32.9]} 26... Bc6 {[%clk 0:02:40]} 27. Rb6 {[%clk 0:02:33.4]} 27...
Bd7 {[%clk 0:02:39.8]} 28. Ra6 {[%clk 0:02:32.8]} 28... a4 {[%clk 0:02:40.5]}
29. Bd1 {[%clk 0:02:32.6]} 29... Ne4 {[%clk 0:02:30.2]} 30. Bxa4 {[%clk
0:02:32.4]} 30... Bxa4 {[%clk 0:02:24.2]} 31. Rxa4 {[%clk 0:02:32.8]} 31... Ke7
{[%clk 0:02:25.6]} 32. Ra7+ {[%clk 0:02:33.5]} 32... Kf6 {[%clk 0:02:26.9]} 33.
a4 {[%clk 0:02:34.3]} 33... e5 {[%clk 0:02:26.3]} 34. a5 {[%clk 0:02:34.5]}
34... d4 {[%clk 0:02:27.2]} 35. exd4 {[%clk 0:02:35.2]} 35... exd4 {[%clk
0:02:27.8]} 36. Rd7 {[%clk 0:01:57]} 1-0